[Event "Late-Titled-Tuesday-Blitz-April-02-2024"]
[Site "Chess.com"]
[Date "2024.04.02"]
[Round "1"]
[White "NateSolon"]
[Black "Nick12772"]
[Result "1-0"]
[WhiteElo "2715"]
[BlackElo "2413"]
[TimeControl "180+1"]
[EndTime "14:05:55 PDT"]
[Termination "NateSolon won by resignation"]

1. d4 {[%clk 0:03:00.9]} 1... Nf6 {[%clk 0:03:00.2]} 2. Bf4 {[%clk 0:03:00.3]}
2... g6 {[%clk 0:03:00.4]} 3. Nf3 {[%clk 0:02:59.5]} 3... Bg7 {[%clk 0:03:00.5]}
4. c3 {[%clk 0:02:59.5]} 4... d5 {[%clk 0:03:00.9]} 5. e3 {[%clk 0:02:56.7]}
5... Bg4 {[%clk 0:02:58.2]} 6. Nbd2 {[%clk 0:02:54.8]} 6... c6 {[%clk
0:02:58.3]} 7. h3 {[%clk 0:02:50.7]} 7... Bxf3 {[%clk 0:02:58.7]} 8. Nxf3 {[%clk
0:02:50.5]} 8... Nbd7 {[%clk 0:02:58.9]} 9. Be2 {[%clk 0:02:47.3]} 9... O-O
{[%clk 0:02:59]} 10. O-O {[%clk 0:02:47.2]} 10... Qb6 {[%clk 0:02:55.2]} 11. Qb3
{[%clk 0:02:20.2]} 11... Qxb3 {[%clk 0:02:48.2]} 12. axb3 {[%clk 0:02:21.1]}
12... a6 {[%clk 0:02:48.5]} 13. b4 {[%clk 0:02:20.3]} 13... Rfe8 {[%clk
0:02:48.4]} 14. Bh2 {[%clk 0:02:19.4]} 14... Ne4 {[%clk 0:02:47.4]} 15. Bd3
{[%clk 0:02:13.1]} 15... e5 {[%clk 0:02:41.1]} 16. Rfe1 {[%clk 0:02:00.7]} 16...
exd4 {[%clk 0:02:37.8]} 17. exd4 {[%clk 0:02:01.6]} 17... Nef6 {[%clk
0:02:26.1]} 18. Nd2 {[%clk 0:01:55.2]} 18... Rxe1+ {[%clk 0:02:25.2]} 19. Rxe1
{[%clk 0:01:56.1]} 19... Re8 {[%clk 0:02:22.8]} 20. Rxe8+ {[%clk 0:01:55.8]}
20... Nxe8 {[%clk 0:02:23.7]} 21. Nb3 {[%clk 0:01:55.7]} 21... Bh6 {[%clk
0:01:55]} 22. Kf1 {[%clk 0:01:38.8]} 22... Kf8 {[%clk 0:01:51.1]} 23. Ke2 {[%clk
0:01:37.3]} 23... Ke7 {[%clk 0:01:51.3]} 24. Na5 {[%clk 0:01:31.4]} 24... Bc1
{[%clk 0:01:49.4]} 25. Nxb7 {[%clk 0:01:26.2]} 25... Bxb2 {[%clk 0:01:48.8]} 26.
Kd2 {[%clk 0:01:26.7]} 26... Nef6 {[%clk 0:01:23.9]} 27. Kc2 {[%clk 0:01:26.4]}
27... Ba1 {[%clk 0:01:23.9]} 28. Na5 {[%clk 0:01:25.4]} 28... Ne4 {[%clk
0:01:13.3]} 29. Bxe4 {[%clk 0:01:24.1]} 29... dxe4 {[%clk 0:01:14.2]} 30. Nb3
{[%clk 0:01:24.3]} 30... Bxc3 {[%clk 0:01:13.2]} 31. Kxc3 {[%clk 0:01:25.2]}
31... Nb6 {[%clk 0:01:11.3]} 32. Nd2 {[%clk 0:01:23.5]} 32... Nd5+ {[%clk
0:01:10.7]} 33. Kc4 {[%clk 0:01:22.3]} 33... f5 {[%clk 0:01:10.5]} 34. Kc5
{[%clk 0:01:11.4]} 34... Kd7 {[%clk 0:01:03.1]} 35. Nc4 {[%clk 0:01:11.4]} 35...
f4 {[%clk 0:01:00]} 36. Nb6+ {[%clk 0:01:08.4]} 36... Nxb6 {[%clk 0:00:57.3]}
37. Kxb6 {[%clk 0:01:09.3]} 37... e3 {[%clk 0:00:55.6]} 38. fxe3 {[%clk
0:01:10.2]} 38... fxe3 {[%clk 0:00:55.4]} 39. Kc5 {[%clk 0:01:04]} 39... e2
{[%clk 0:00:54.1]} 40. Bg3 {[%clk 0:01:04.2]} 40... h6 {[%clk 0:00:49.3]} 41.
Be1 {[%clk 0:01:00.3]} 41... g5 {[%clk 0:00:46.1]} 42. g4 {[%clk 0:00:59.7]} 1-0

[Event "Late-Titled-Tuesday-Blitz-April-02-2024"]
[Site "Chess.com"]
[Date "2024.04.02"]
[Round "1"]
[White "Itay121"]
[Black "Firouzja2003"]
[Result "0-1"]
[WhiteElo "2543"]
[BlackElo "3092"]
[TimeControl "180+1"]
[EndTime "14:05:56 PDT"]
[Termination "Firouzja2003 won by checkmate"]

1. d4 {[%clk 0:03:00.9]} 1... c5 {[%clk 0:03:00.9]} 2. d5 {[%clk 0:02:59.5]}
2... e5 {[%clk 0:03:01.6]} 3. e4 {[%clk 0:02:58.7]} 3... d6 {[%clk 0:03:02.3]}
4. Nc3 {[%clk 0:02:55.7]} 4... Be7 {[%clk 0:03:02.7]} 5. Nf3 {[%clk 0:02:51.7]}
5... Nf6 {[%clk 0:03:01.6]} 6. Bg5 {[%clk 0:02:50.5]} 6... O-O {[%clk
0:03:01.9]} 7. a4 {[%clk 0:02:48.1]} 7... Nbd7 {[%clk 0:03:02.3]} 8. a5 {[%clk
0:02:46.9]} 8... a6 {[%clk 0:03:02.1]} 9. Bc4 {[%clk 0:02:45]} 9... h6 {[%clk
0:03:01.1]} 10. Bd2 {[%clk 0:02:31.9]} 10... Re8 {[%clk 0:03:00.9]} 11. O-O
{[%clk 0:02:29.9]} 11... Nf8 {[%clk 0:03:01.4]} 12. h3 {[%clk 0:02:28.9]} 12...
Ng6 {[%clk 0:03:01.4]} 13. Na4 {[%clk 0:02:27]} 13... Nxe4 {[%clk 0:03:01.3]}
14. Nb6 {[%clk 0:02:25.7]} 14... Nxd2 {[%clk 0:03:01.7]} 15. Qxd2 {[%clk
0:02:11.5]} 15... Rb8 {[%clk 0:03:02.3]} 16. Rae1 {[%clk 0:02:08.8]} 16... Bg5
{[%clk 0:03:02.3]} 17. Nxg5 {[%clk 0:02:03.3]} 17... Qxg5 {[%clk 0:03:01.3]} 18.
Qxg5 {[%clk 0:02:01.1]} 18... hxg5 {[%clk 0:03:02.2]} 19. Bd3 {[%clk 0:01:59.1]}
19... Nf4 {[%clk 0:03:02.1]} 20. Re3 {[%clk 0:01:52.2]} 20... g6 {[%clk
0:03:01]} 21. Rfe1 {[%clk 0:01:49.9]} 21... Kg7 {[%clk 0:03:01.3]} 22. b3 {[%clk
0:01:44.8]} 22... Rh8 {[%clk 0:03:01.1]} 23. Bf1 {[%clk 0:01:44.4]} 23... Bf5
{[%clk 0:03:00.2]} 24. c4 {[%clk 0:01:41.2]} 24... Rbd8 {[%clk 0:02:56.3]} 25.
Rg3 {[%clk 0:01:32.2]} 25... Kf6 {[%clk 0:02:55.2]} 26. Rge3 {[%clk 0:01:31.3]}
26... g4 {[%clk 0:02:49.5]} 27. hxg4 {[%clk 0:01:30.4]} 27... Bxg4 {[%clk
0:02:50.4]} 28. f3 {[%clk 0:01:16.9]} 28... Bf5 {[%clk 0:02:50.6]} 29. Kf2
{[%clk 0:01:16.7]} 29... Rh2 {[%clk 0:02:50.1]} 30. Rd1 {[%clk 0:00:55.1]} 30...
Rdh8 {[%clk 0:02:49.2]} 31. Rd2 {[%clk 0:00:53.7]} 31... g5 {[%clk 0:02:41.5]}
32. Na4 {[%clk 0:00:53.5]} 32... g4 {[%clk 0:02:41.6]} 33. fxg4 {[%clk 0:00:47]}
33... Bxg4 {[%clk 0:02:41.9]} 34. Nc3 {[%clk 0:00:46.1]} 34... Bf5 {[%clk
0:02:42.3]} 35. Rg3 {[%clk 0:00:37.4]} 35... e4 {[%clk 0:02:40.5]} 36. Re3
{[%clk 0:00:34.9]} 36... Ke5 {[%clk 0:02:40.5]} 37. Rd1 {[%clk 0:00:30.6]} 37...
Rg8 {[%clk 0:02:40.1]} 38. Kg1 {[%clk 0:00:29.1]} 38... Nxg2 {[%clk 0:02:39.1]}
39. Kxh2 {[%clk 0:00:15.8]} 39... Nxe3 {[%clk 0:02:38.7]} 40. Re1 {[%clk
0:00:16.7]} 40... Ng4+ {[%clk 0:02:33.6]} 41. Kg3 {[%clk 0:00:14.5]} 41... Nf6+
{[%clk 0:02:31.4]} 42. Kf2 {[%clk 0:00:11.7]} 42... Rh8 {[%clk 0:02:32.3]} 43.
Bg2 {[%clk 0:00:08.6]} 43... Rh4 {[%clk 0:02:28.2]} 44. Kg3 {[%clk 0:00:08.6]}
44... Rg4+ {[%clk 0:02:28.4]} 45. Kh2 {[%clk 0:00:08.1]} 45... Nh5 {[%clk
0:02:26.1]} 46. Bf3 {[%clk 0:00:06.3]} 46... Rh4+ {[%clk 0:02:26.2]} 47. Kg1
{[%clk 0:00:06.9]} 47... Nf4 {[%clk 0:02:24.9]} 48. Nxe4 {[%clk 0:00:06.9]}
48... Nh3+ {[%clk 0:02:25]} 49. Kg2 {[%clk 0:00:05.4]} 49... Bxe4 {[%clk
0:02:25.3]} 50. Rxe4+ {[%clk 0:00:04.5]} 50... Rxe4 {[%clk 0:02:25.6]} 51. Bxe4
{[%clk 0:00:05.4]} 51... Kxe4 {[%clk 0:02:26]} 52. Kxh3 {[%clk 0:00:05.8]} 52...
Kd4 {[%clk 0:02:22.9]} 53. Kg4 {[%clk 0:00:06.3]} 53... Kc3 {[%clk 0:02:23.5]}
54. Kf5 {[%clk 0:00:06.9]} 54... Kxb3 {[%clk 0:02:24.2]} 55. Kf6 {[%clk
0:00:07]} 55... Kxc4 {[%clk 0:02:24.8]} 56. Ke7 {[%clk 0:00:04.9]} 56... Kxd5
{[%clk 0:02:25.7]} 57. Kd7 {[%clk 0:00:05]} 57... c4 {[%clk 0:02:26.4]} 58. Kc7
{[%clk 0:00:05.9]} 58... c3 {[%clk 0:02:27.3]} 59. Kxb7 {[%clk 0:00:06.3]} 59...
c2 {[%clk 0:02:28.2]} 60. Kb6 {[%clk 0:00:05.2]} 60... c1=Q {[%clk 0:02:29.1]}
61. Ka7 {[%clk 0:00:05.5]} 61... Qc6 {[%clk 0:02:29.3]} 62. Kb8 {[%clk
0:00:05.6]} 62... f5 {[%clk 0:02:29.4]} 63. Ka7 {[%clk 0:00:06.5]} 63... Qb5
{[%clk 0:02:29.6]} 64. Ka8 {[%clk 0:00:06.2]} 64... Kc6 {[%clk 0:02:30.2]} 65.
Ka7 {[%clk 0:00:07.1]} 65... Qb7# {[%clk 0:02:30.1]} 0-1

[Event "Late-Titled-Tuesday-Blitz-April-02-2024"]
[Site "Chess.com"]
[Date "2024.04.02"]
[Round "1"]
[White "Quattroporte300"]
[Black "Shankland"]
[Result "0-1"]
[WhiteElo "2494"]
[BlackElo "2910"]
[TimeControl "180+1"]
[EndTime "14:05:56 PDT"]
[Termination "Shankland won by resignation"]

1. e4 {[%clk 0:03:00.9]} 1... c5 {[%clk 0:02:59.9]} 2. Nf3 {[%clk 0:03:00.1]}
2... d6 {[%clk 0:03:00.1]} 3. d4 {[%clk 0:02:59.4]} 3... cxd4 {[%clk 0:03:01]}
4. Nxd4 {[%clk 0:02:59.9]} 4... Nf6 {[%clk 0:03:01.6]} 5. Nc3 {[%clk 0:03:00.5]}
5... Nc6 {[%clk 0:03:01.9]} 6. f3 {[%clk 0:03:00.4]} 6... e5 {[%clk 0:03:01.4]}
7. Nb3 {[%clk 0:03:00.6]} 7... Be6 {[%clk 0:03:01.2]} 8. Be3 {[%clk 0:03:00.5]}
8... Be7 {[%clk 0:02:59.9]} 9. Qd2 {[%clk 0:03:00.7]} 9... d5 {[%clk 0:02:58.9]}
10. exd5 {[%clk 0:03:00.5]} 10... Nxd5 {[%clk 0:02:59.6]} 11. Nxd5 {[%clk
0:03:01.1]} 11... Qxd5 {[%clk 0:02:59.3]} 12. Qxd5 {[%clk 0:03:01.7]} 12... Bxd5
{[%clk 0:02:59.8]} 13. O-O-O {[%clk 0:03:02.3]} 13... O-O-O {[%clk 0:02:59.9]}
14. Bb5 {[%clk 0:02:51.5]} 14... a6 {[%clk 0:02:57]} 15. Bxc6 {[%clk 0:02:51.1]}
15... Bxc6 {[%clk 0:02:57.1]} 16. Na5 {[%clk 0:02:34.3]} 16... Bb5 {[%clk
0:02:52.4]} 17. c4 {[%clk 0:02:28.2]} 17... Bd7 {[%clk 0:02:46.8]} 18. c5 {[%clk
0:02:17.6]} 18... Bb5 {[%clk 0:02:30.4]} 19. b3 {[%clk 0:02:11.3]} 19... f5
{[%clk 0:02:24.2]} 20. a4 {[%clk 0:02:09.6]} 20... Bd3 {[%clk 0:02:24.2]} 21.
Kb2 {[%clk 0:01:50.9]} 21... f4 {[%clk 0:02:15.2]} 22. Bf2 {[%clk 0:01:48.4]}
22... e4 {[%clk 0:02:14.1]} 23. fxe4 {[%clk 0:01:42]} 23... Bxe4 {[%clk
0:02:11.8]} 24. Nc4 {[%clk 0:01:28.2]} 24... Bxg2 {[%clk 0:02:09.5]} 25. Rhg1
{[%clk 0:01:27.6]} 25... Rxd1 {[%clk 0:02:07.4]} 26. Rxd1 {[%clk 0:01:27]} 26...
Bc6 {[%clk 0:02:00.3]} 27. Nb6+ {[%clk 0:01:06.5]} 27... Kb8 {[%clk 0:01:52.5]}
28. Bd4 {[%clk 0:00:53]} 28... Rg8 {[%clk 0:01:48.2]} 29. Be5+ {[%clk 0:00:52]}
29... Ka7 {[%clk 0:01:48.5]} 30. Bxf4 {[%clk 0:00:30.5]} 30... Bxc5 {[%clk
0:01:48.2]} 31. Nd7 {[%clk 0:00:23.5]} 31... Rd8 {[%clk 0:01:40.1]} 32. Bb8+
{[%clk 0:00:12]} 32... Ka8 {[%clk 0:01:36.4]} 33. b4 {[%clk 0:00:05.2]} 33...
Rxd7 {[%clk 0:01:35.4]} 34. Rxd7 {[%clk 0:00:03.9]} 34... Bxd7 {[%clk
0:01:36.3]} 0-1

[Event "Late-Titled-Tuesday-Blitz-April-02-2024"]
[Site "Chess.com"]
[Date "2024.04.02"]
[Round "1"]
[White "jlf287"]
[Black "shirovin"]
[Result "0-1"]
[WhiteElo "2543"]
[BlackElo "2070"]
[TimeControl "180+1"]
[EndTime "14:05:58 PDT"]
[Termination "shirovin won by checkmate"]

1. e4 {[%clk 0:02:55.5]} 1... Nf6 {[%clk 0:02:59.4]} 2. e5 {[%clk 0:02:55.4]}
2... Nd5 {[%clk 0:03:00]} 3. d4 {[%clk 0:02:56]} 3... d6 {[%clk 0:03:00]} 4. c4
{[%clk 0:02:55.6]} 4... Nb6 {[%clk 0:02:59.1]} 5. exd6 {[%clk 0:02:56.2]} 5...
exd6 {[%clk 0:02:58.5]} 6. Nc3 {[%clk 0:02:55.8]} 6... Be7 {[%clk 0:02:57.3]} 7.
Bd3 {[%clk 0:02:51.9]} 7... Nc6 {[%clk 0:02:52]} 8. Nge2 {[%clk 0:02:50.9]} 8...
O-O {[%clk 0:02:49]} 9. O-O {[%clk 0:02:51]} 9... Bg4 {[%clk 0:02:41.4]} 10. Qc2
{[%clk 0:02:47.8]} 10... Bf6 {[%clk 0:02:33.9]} 11. Bxh7+ {[%clk 0:02:46.6]}
11... Kh8 {[%clk 0:02:31]} 12. f3 {[%clk 0:02:41.2]} 12... Bd7 {[%clk
0:02:22.8]} 13. d5 {[%clk 0:02:33.6]} 13... Ne5 {[%clk 0:02:20.5]} 14. Bd3
{[%clk 0:02:31]} 14... g6 {[%clk 0:02:11.7]} 15. b3 {[%clk 0:02:29.7]} 15... Re8
{[%clk 0:02:04.2]} 16. Bb2 {[%clk 0:02:20.5]} 16... Nxd3 {[%clk 0:01:46.3]} 17.
Qxd3 {[%clk 0:02:20.4]} 17... Bf5 {[%clk 0:01:46.6]} 18. Qd2 {[%clk 0:02:19.4]}
18... Nd7 {[%clk 0:01:42.1]} 19. Nd4 {[%clk 0:02:19.3]} 19... Ne5 {[%clk
0:01:19.7]} 20. Nxf5 {[%clk 0:02:17.2]} 20... gxf5 {[%clk 0:01:19]} 21. Qh6+
{[%clk 0:02:10.2]} 21... Kg8 {[%clk 0:01:17.5]} 22. f4 {[%clk 0:02:06.2]} 22...
Bg7 {[%clk 0:01:02.3]} 23. Qh5 {[%clk 0:02:04.4]} 23... Nd3 {[%clk 0:00:58.8]}
24. Na4 {[%clk 0:01:43.9]} 24... Nxb2 {[%clk 0:00:56.9]} 25. Nxb2 {[%clk
0:01:44.8]} 25... Bxb2 {[%clk 0:00:56]} 26. Rab1 {[%clk 0:01:45.7]} 26... Bg7
{[%clk 0:00:55.2]} 27. Qxf5 {[%clk 0:01:45.7]} 27... Qf6 {[%clk 0:00:53.9]} 28.
Qxf6 {[%clk 0:01:42.1]} 28... Bxf6 {[%clk 0:00:53.4]} 29. Kf2 {[%clk 0:01:43]}
29... Bd4+ {[%clk 0:00:50.8]} 30. Kf3 {[%clk 0:01:40.2]} 30... Re3+ {[%clk
0:00:49.5]} 31. Kg4 {[%clk 0:01:39.3]} 31... Kh7 {[%clk 0:00:48.6]} 32. g3
{[%clk 0:01:36.4]} 32... Re2 {[%clk 0:00:41.9]} 33. Rbe1 {[%clk 0:01:31.4]}
33... Rae8 {[%clk 0:00:40.2]} 34. Rd1 {[%clk 0:01:28.2]} 34... Bc5 {[%clk
0:00:36.4]} 35. h4 {[%clk 0:01:20]} 35... Rxa2 {[%clk 0:00:34.7]} 36. Kh5 {[%clk
0:01:19.1]} 36... Rg2 {[%clk 0:00:30.8]} 37. g4 {[%clk 0:01:16.8]} 37... Rg8
{[%clk 0:00:30]} 38. g5 {[%clk 0:01:15.9]} 38... Kg7 {[%clk 0:00:28.5]} 39. f5
{[%clk 0:01:15.5]} 39... Rh8# {[%clk 0:00:25.3]} 0-1

[Event "Late-Titled-Tuesday-Blitz-April-02-2024"]
[Site "Chess.com"]
[Date "2024.04.02"]
[Round "1"]
[White "kikoveiga"]
[Black "jcibarra"]
[Result "0-1"]
[WhiteElo "2511"]
[BlackElo "2971"]
[TimeControl "180+1"]
[EndTime "14:05:59 PDT"]
[Termination "jcibarra won by resignation"]

1. e4 {[%clk 0:03:00.9]} 1... c5 {[%clk 0:03:00.2]} 2. Nf3 {[%clk 0:03:01.2]}
2... Nc6 {[%clk 0:03:00.7]} 3. d4 {[%clk 0:03:01.8]} 3... cxd4 {[%clk
0:03:00.7]} 4. Nxd4 {[%clk 0:03:02.7]} 4... e5 {[%clk 0:03:01.1]} 5. Nb5 {[%clk
0:03:02.7]} 5... a6 {[%clk 0:02:57.7]} 6. Nd6+ {[%clk 0:03:02.5]} 6... Bxd6
{[%clk 0:02:58.4]} 7. Qxd6 {[%clk 0:03:02.9]} 7... Qe7 {[%clk 0:02:59.3]} 8. Qd1
{[%clk 0:03:03.3]} 8... Nf6 {[%clk 0:02:59.4]} 9. Nc3 {[%clk 0:03:02.1]} 9... d6
{[%clk 0:03:00.1]} 10. Bg5 {[%clk 0:03:01.8]} 10... Be6 {[%clk 0:03:00.8]} 11.
Qd2 {[%clk 0:02:53]} 11... h6 {[%clk 0:02:54.9]} 12. Bxf6 {[%clk 0:02:41.9]}
12... Qxf6 {[%clk 0:02:53.4]} 13. O-O-O {[%clk 0:02:28.6]} 13... O-O {[%clk
0:02:50.6]} 14. f3 {[%clk 0:02:28.1]} 14... Rfd8 {[%clk 0:02:48]} 15. Be2 {[%clk
0:02:24]} 15... Rac8 {[%clk 0:02:47.4]} 16. g4 {[%clk 0:02:23.7]} 16... Nd4
{[%clk 0:02:47]} 17. Qe3 {[%clk 0:02:09.7]} 17... b5 {[%clk 0:02:38.8]} 18. Rd2
{[%clk 0:01:47.6]} 18... b4 {[%clk 0:02:30.2]} 19. Nd5 {[%clk 0:01:47.6]} 19...
Bxd5 {[%clk 0:02:29.1]} 20. exd5 {[%clk 0:01:47.9]} 20... Rc5 {[%clk 0:02:11.2]}
21. h4 {[%clk 0:01:47]} 21... Rdc8 {[%clk 0:02:09.4]} 22. Bd1 {[%clk 0:01:33]}
22... Qd8 {[%clk 0:01:45.4]} 23. Kb1 {[%clk 0:01:26.9]} 23... Rc3 {[%clk
0:01:34.7]} 24. Qf2 {[%clk 0:00:59.4]} 24... Qa5 {[%clk 0:01:21.3]} 25. f4
{[%clk 0:00:50.4]} 25... b3 {[%clk 0:01:06.1]} 26. a3 {[%clk 0:00:21]} 26...
bxc2+ {[%clk 0:01:03.4]} 27. Bxc2 {[%clk 0:00:21]} 27... Rxc2 {[%clk 0:01:01.1]}
28. g5 {[%clk 0:00:11.7]} 0-1

[Event "Late-Titled-Tuesday-Blitz-April-02-2024"]
[Site "Chess.com"]
[Date "2024.04.02"]
[Round "1"]
[White "xasid81"]
[Black "kiwibobo"]
[Result "1-0"]
[WhiteElo "2623"]
[BlackElo "2304"]
[TimeControl "180+1"]
[EndTime "14:05:59 PDT"]
[Termination "xasid81 won by resignation"]

1. e4 {[%clk 0:02:59]} 1... e5 {[%clk 0:03:00]} 2. Nf3 {[%clk 0:02:58.2]} 2...
Nc6 {[%clk 0:03:00.7]} 3. Nc3 {[%clk 0:02:56.7]} 3... Nf6 {[%clk 0:03:01.1]} 4.
Be2 {[%clk 0:02:56.8]} 4... a6 {[%clk 0:02:56.4]} 5. d4 {[%clk 0:02:55.3]} 5...
exd4 {[%clk 0:02:55.5]} 6. Nxd4 {[%clk 0:02:56.2]} 6... Bb4 {[%clk 0:02:55.6]}
7. Nxc6 {[%clk 0:02:55.7]} 7... bxc6 {[%clk 0:02:56.5]} 8. O-O {[%clk
0:02:54.5]} 8... O-O {[%clk 0:02:53.4]} 9. e5 {[%clk 0:02:53.4]} 9... Bxc3
{[%clk 0:02:53.3]} 10. bxc3 {[%clk 0:02:53.2]} 10... Nd5 {[%clk 0:02:54]} 11.
Bb2 {[%clk 0:02:48.2]} 11... Rb8 {[%clk 0:02:41.9]} 12. Rb1 {[%clk 0:02:44.9]}
12... Qg5 {[%clk 0:02:39.4]} 13. c4 {[%clk 0:02:24.1]} 13... Rxb2 {[%clk
0:02:34.2]} 14. Rxb2 {[%clk 0:02:17]} 14... Nc3 {[%clk 0:02:34.2]} 15. Qe1
{[%clk 0:01:30.5]} 15... Qxe5 {[%clk 0:02:34]} 16. Bd3 {[%clk 0:01:17.3]} 16...
Ne2+ {[%clk 0:02:32.7]} 17. Qxe2 {[%clk 0:01:16.5]} 17... Qxb2 {[%clk
0:02:33.4]} 18. Qe7 {[%clk 0:01:14.5]} 18... Qf6 {[%clk 0:02:08.5]} 19. Bxh7+
{[%clk 0:01:12.5]} 19... Kxh7 {[%clk 0:02:04.9]} 20. Qxf8 {[%clk 0:01:13.4]}
20... Bb7 {[%clk 0:02:00.3]} 21. Qb4 {[%clk 0:01:07.4]} 21... Bc8 {[%clk
0:01:55.2]} 22. h3 {[%clk 0:01:07.9]} 22... d6 {[%clk 0:01:53.1]} 23. Qb8 {[%clk
0:01:07.5]} 23... Be6 {[%clk 0:01:51.6]} 24. Qxc7 {[%clk 0:01:07]} 24... c5
{[%clk 0:01:46.5]} 25. Qxd6 {[%clk 0:01:05.2]} 25... Qg5 {[%clk 0:01:40.6]} 26.
Qg3 {[%clk 0:00:58.6]} 26... Qxg3 {[%clk 0:01:30.8]} 27. fxg3 {[%clk 0:00:59.5]}
27... Bxc4 {[%clk 0:01:31.5]} 28. Rf5 {[%clk 0:00:58.7]} 28... Bxa2 {[%clk
0:01:30.6]} 29. Rxc5 {[%clk 0:00:59.3]} 29... Be6 {[%clk 0:01:25]} 30. Rc6
{[%clk 0:00:57.3]} 30... a5 {[%clk 0:01:24.9]} 31. Ra6 {[%clk 0:00:56.5]} 31...
Bf5 {[%clk 0:01:24.7]} 32. c3 {[%clk 0:00:55.9]} 32... a4 {[%clk 0:01:20.7]} 33.
Rxa4 {[%clk 0:00:55.7]} 33... Kg6 {[%clk 0:01:21.1]} 34. Rd4 {[%clk 0:00:56.2]}
34... Kf6 {[%clk 0:01:21]} 35. Kf2 {[%clk 0:00:56.8]} 35... Ke5 {[%clk
0:01:21.3]} 36. g4 {[%clk 0:00:57.1]} 36... Be6 {[%clk 0:01:21]} 37. h4 {[%clk
0:00:56.3]} 37... Bb3 {[%clk 0:01:20.6]} 38. g5 {[%clk 0:00:56.4]} 38... Be6
{[%clk 0:01:20.7]} 39. g4 {[%clk 0:00:56.5]} 39... Bb3 {[%clk 0:01:20.2]} 40.
Kg3 {[%clk 0:00:57]} 40... Be6 {[%clk 0:01:20.1]} 41. h5 {[%clk 0:00:57.5]}
41... Bb3 {[%clk 0:01:19.6]} 42. Kh4 {[%clk 0:00:58.1]} 42... Bc2 {[%clk
0:01:19.4]} 43. h6 {[%clk 0:00:58.7]} 43... gxh6 {[%clk 0:01:19.7]} 44. gxh6
{[%clk 0:00:59.4]} 44... Bg6 {[%clk 0:01:20.1]} 45. g5 {[%clk 0:00:59.5]} 45...
Bf5 {[%clk 0:01:19.9]} 46. Rd2 {[%clk 0:00:58.7]} 46... Bg6 {[%clk 0:01:18.5]}
47. c4 {[%clk 0:00:59.1]} 47... Ke6 {[%clk 0:01:16.3]} 48. c5 {[%clk 0:00:59.4]}
48... Be4 {[%clk 0:01:14.9]} 49. Re2 {[%clk 0:00:59.1]} 49... Kd5 {[%clk
0:01:14.6]} 50. Rxe4 {[%clk 0:00:59.3]} 50... Kxe4 {[%clk 0:01:15.3]} 51. h7
{[%clk 0:00:59.6]} 1-0

[Event "Late-Titled-Tuesday-Blitz-April-02-2024"]
[Site "Chess.com"]
[Date "2024.04.02"]
[Round "1"]
[White "B_nn_t"]
[Black "Slovak_fighter2000"]
[Result "1-0"]
[WhiteElo "2237"]
[BlackElo "2564"]
[TimeControl "180+1"]
[EndTime "14:06:04 PDT"]
[Termination "B_nn_t won by resignation"]

1. e4 {[%clk 0:03:00.9]} 1... e6 {[%clk 0:02:59]} 2. d4 {[%clk 0:03:00.6]} 2...
d5 {[%clk 0:02:59]} 3. Nc3 {[%clk 0:03:00]} 3... Nf6 {[%clk 0:02:58.8]} 4. e5
{[%clk 0:02:59.2]} 4... Nfd7 {[%clk 0:02:58.4]} 5. f4 {[%clk 0:02:58.8]} 5... c5
{[%clk 0:02:54.9]} 6. Nf3 {[%clk 0:02:58.4]} 6... Nc6 {[%clk 0:02:54.9]} 7. Be3
{[%clk 0:02:58.2]} 7... Be7 {[%clk 0:02:55.4]} 8. Qd2 {[%clk 0:02:56.6]} 8...
O-O {[%clk 0:02:55.5]} 9. dxc5 {[%clk 0:02:54.9]} 9... Qa5 {[%clk 0:02:54]} 10.
Nd4 {[%clk 0:02:32.6]} 10... Bxc5 {[%clk 0:02:26.7]} 11. Be2 {[%clk 0:02:03.9]}
11... Nxd4 {[%clk 0:02:24.4]} 12. Bxd4 {[%clk 0:02:02.7]} 12... b6 {[%clk
0:02:17.8]} 13. O-O-O {[%clk 0:01:44.4]} 13... Bb7 {[%clk 0:02:15.1]} 14. Kb1
{[%clk 0:01:36]} 14... Rac8 {[%clk 0:02:11.7]} 15. a3 {[%clk 0:01:35.6]} 15...
Bxd4 {[%clk 0:02:10.8]} 16. Qxd4 {[%clk 0:01:35.3]} 16... Qc5 {[%clk 0:02:05.3]}
17. h4 {[%clk 0:01:33.8]} 17... Qxd4 {[%clk 0:01:57.1]} 18. Rxd4 {[%clk
0:01:33.6]} 18... Nc5 {[%clk 0:01:58]} 19. h5 {[%clk 0:01:30.8]} 19... Rfd8
{[%clk 0:01:48.8]} 20. h6 {[%clk 0:01:30.7]} 20... g6 {[%clk 0:01:48.3]} 21. g4
{[%clk 0:01:24.8]} 21... Kf8 {[%clk 0:01:45.1]} 22. Rf1 {[%clk 0:01:21.8]} 22...
Ke7 {[%clk 0:01:42.4]} 23. Bd3 {[%clk 0:01:16.4]} 23... Nxd3 {[%clk 0:01:29.3]}
24. cxd3 {[%clk 0:01:17.3]} 24... a5 {[%clk 0:01:17.8]} 25. f5 {[%clk
0:01:17.2]} 25... gxf5 {[%clk 0:01:16.6]} 26. gxf5 {[%clk 0:01:18.1]} 26... Ba6
{[%clk 0:01:11.5]} 27. f6+ {[%clk 0:01:11.5]} 27... Kd7 {[%clk 0:01:07.3]} 28.
Rg1 {[%clk 0:01:11.9]} 28... Rg8 {[%clk 0:01:01.6]} 29. Rg7 {[%clk 0:01:11.8]}
29... Rxg7 {[%clk 0:00:58.7]} 30. hxg7 {[%clk 0:01:12.7]} 30... h5 {[%clk
0:00:47.1]} 31. Kc2 {[%clk 0:01:12.2]} 31... Rg8 {[%clk 0:00:40.8]} 32. Rh4
{[%clk 0:01:10.8]} 32... d4 {[%clk 0:00:39.4]} 33. Rxd4+ {[%clk 0:01:10.1]}
33... Kc7 {[%clk 0:00:37.2]} 34. Rh4 {[%clk 0:01:09.1]} 34... b5 {[%clk
0:00:27]} 35. b4 {[%clk 0:01:08.2]} 35... axb4 {[%clk 0:00:27.2]} 36. axb4
{[%clk 0:01:09.1]} 1-0